lending/lending_fUSD_20240926
["ID","MTS","AMOUNT","RATE_DAILY","PERIOD"]
[339208129,1727325366636,152.26,0.000139,31]
[339208130,1727325366695,152.26,0.000139,31]
[339208131,1727325366764,152.26,0.000139,31]
[339208132,1727325366818,152.26,0.000139,31]
[339208133,1727325366880,152.26,0.000139,31]
[339208134,1727325366944,152.26,0.000139,31]
[339208135,1727325366985,152.26,0.000139,31]
[339208136,1727325367047,152.26,0.000139,31]
[339208137,1727325367105,152.26,0.000139,31]
[339208138,1727325367248,152.26,0.000139,31]
[339208139,1727325367289,152.26,0.000139,31]
[339208140,1727325367333,152.26,0.000139,31]
[339208141,1727325367416,152.26,0.000139,31]
[339208142,1727325425585,1050.0,0.00011,2]
[339208143,1727325434372,216.86,0.00010959,2]
[339208144,1727325501530,255.0,0.00021,60]
[339208146,1727325671869,-250.0,0.00011512,2]
[339208147,1727325671894,-250.0,0.00011596,2]
[339208148,1727325671917,-200.0,0.00011621,2]
[339208149,1727325671939,-300.0,0.00011635,2]
[339208150,1727325671964,-19310.0,0.00011636,2]
[339208151,1727325801974,200.0,0.00020706,120]
[339208152,1727325825073,8318.21,0.00011,2]
[339208153,1727325855145,1209.79,9.663e-05,2]
[339208154,1727325976778,152.27,0.000139,31]
[339208155,1727325976827,152.27,0.000139,31]
[339208156,1727325976896,152.27,0.000139,31]
[339208157,1727325976952,152.27,0.000139,31]
[339208158,1727325977009,152.27,0.000139,31]
[339208159,1727325977077,152.27,0.000139,31]
[339208160,1727325977136,152.27,0.000139,31]
[339208161,1727325977195,152.27,0.000139,31]
[339208162,1727325977254,152.27,0.000139,31]
[339208163,1727325977311,152.27,0.000139,31]
[339208164,1727325977379,152.27,0.000139,31]
[339208165,1727325977629,152.27,0.000139,31]
[339208166,1727325977664,152.27,0.000139,31]
[339208167,1727325977694,152.27,0.000139,31]
[339208168,1727326042221,600.0,9.068e-05,2]
[339208169,1727326043798,600.0,0.00010438,2]
[339208170,1727326064570,600.0,9.068e-05,2]
[339208171,1727326066164,600.0,0.00010438,2]
[339208182,1727326230267,260.38,0.00010959,2]
[339208200,1727326232032,-0.53803374,0.00011293,2]
[339208219,1727326238123,-1168.70766274,0.00011293,2]
[339208220,1727326238395,-705.57723495,0.00011293,2]
[339208221,1727326238407,-2187.28038826,0.0001132,2]
[339208222,1727326238419,-250.0,0.00011393,2]
[339208223,1727326238428,-1500.0,0.00011394,2]
[339208224,1727326238439,-1530.25,0.0001142,2]
[339208225,1727326238448,-250.0,0.00011448,2]
[339208226,1727326238458,-1337.1486,0.00011496,2]
[339208227,1727326238468,-6723.9,0.00011513,2]
[339208228,1727326238478,-637.69,0.0001156,2]
[339208229,1727326238489,-800.0,0.0001156,2]
[339208230,1727326238499,-198.42,0.00011574,2]
[339208231,1727326238509,-150.0,0.00011726,2]
[339208232,1727326238518,-1739.82,0.00011761,4]
[339208233,1727326238527,-200.0,0.00011762,2]
[339208234,1727326238536,-499.99,0.00011762,2]
[339208235,1727326238545,-600.0,0.00011808,2]
[339208236,1727326238555,-600.0,0.00011808,2]
[339208238,1727326238566,-1209.79,0.00011927,2]
[339208239,1727326238578,-1530.25,0.00011991,2]
[339208240,1727326238587,-154.65,0.00011997,2]
[339208241,1727326238596,-154.65,0.00012003,2]
[339208242,1727326238607,-5508.55,0.00012003,2]
[339208244,1727326238616,-154.65,0.00012008,2]
[339208246,1727326238625,-154.65,0.00012014,2]
[339208248,1727326238634,-154.65,0.00012019,2]
[339208250,1727326238643,-154.65,0.00012024,2]
[339208252,1727326238652,-154.65,0.0001203,2]
[339208254,1727326238662,-154.65,0.00012035,2]
[339208256,1727326238672,-154.65,0.00012041,2]
[339208258,1727326238681,-154.65,0.00012046,2]
[339208260,1727326238692,-154.65,0.00012052,2]
[339208262,1727326238701,-154.65,0.00012057,2]
[339208264,1727326238710,-533.62,0.000121,2]
[339208266,1727326238719,-533.62,0.000121,2]
[339208268,1727326238729,-533.62,0.000121,2]
[339208270,1727326238738,-533.62,0.000121,2]
[339208272,1727326238747,-533.62,0.000121,2]
[339208274,1727326238756,-533.62,0.000121,2]
[339208276,1727326238765,-150.0,0.00012177,2]
[339208278,1727326238774,-533.62,0.00012178,2]
[339208280,1727326238783,-51.19377679,0.00012178,2]
[339208281,1727326238796,-482.42622321,0.00012178,2]
[339208282,1727326238805,-533.62,0.00012178,2]
[339208283,1727326238815,-533.62,0.00012178,2]
[339208284,1727326238826,-533.62,0.00012192,2]
[339208285,1727326238838,-533.62,0.00012192,2]
[339208286,1727326238847,-124.65800147,0.000122,2]
[339208293,1727326240065,-408.96199853,0.000122,2]
[339208294,1727326240075,-10000.0,0.00012223,2]
[339208295,1727326240085,-533.62,0.00012278,2]
[339208296,1727326240094,-533.62,0.00012278,2]
[339208297,1727326240104,-533.62,0.00012278,2]
[339208298,1727326240287,-533.62,0.00012278,2]
[339208299,1727326240296,-533.62,0.00012278,2]
[339208300,1727326240306,-533.62,0.00012278,2]
[339208301,1727326240315,-533.62,0.000123,2]
[339208302,1727326240324,-533.62,0.000123,2]
[339208303,1727326240334,-1250.0,0.000123,2]
[339208304,1727326240343,-150.0,0.00012378,2]
[339208305,1727326240354,-150.0,0.00012378,2]
[339208306,1727326240365,-533.62,0.00012378,2]
[339208307,1727326240379,-533.62,0.00012378,2]
[339208308,1727326240390,-167.08,0.00012445,2]
[339208309,1727326240399,-170.19,0.00012445,2]
[339208310,1727326240409,-150.0,0.00012478,2]
[339208311,1727326240421,-150.0,0.00012478,2]
[339208312,1727326240431,-533.62,0.000125,2]
[339208313,1727326240441,-533.62,0.000125,2]
[339208314,1727326240451,-533.62,0.000125,2]
[339208315,1727326240461,-533.62,0.000125,2]
[339208316,1727326240471,-180.0,0.00012539,2]
[339208317,1727326240482,-1530.25,0.00012562,2]
[339208318,1727326240492,-1129.0,0.000126,2]
[339208319,1727326240502,-1110.77478507,0.00012642,2]
[339208320,1727326240513,-1036.17115946,0.00012642,2]
[339208321,1727326240522,-1003.38969054,0.00012642,2]
[339208322,1727326240531,-261.1947,0.00012699,2]
[339208323,1727326240542,-3803.1597,0.00012699,2]
[339208324,1727326240551,-533.62,0.000127,2]
[339208325,1727326240560,-533.62,0.000127,2]
[339208326,1727326240569,-533.62,0.000127,2]
[339208327,1727326240578,-533.62,0.000127,2]
[339208328,1727326240587,-222.0,0.00012702,2]
[339208329,1727326240596,-150.0,0.00012754,2]
[339208330,1727326240605,-1200.0,0.00012771,2]
[339208331,1727326240614,-243.36089124,0.00012788,2]
[339208332,1727326240625,-12884.577,0.00012789,2]
[339208333,1727326240634,-500.0,0.00012797,2]
[339208334,1727326240643,-6920.75,0.00012799,2]
[339208335,1727326240653,-33053.7802,0.00012799,2]
[339208336,1727326240662,-154.88093771,0.000128,2]
[339208337,1727326240672,-2538.4875,0.000128,2]
[339208338,1727326240681,-50774.89528614,0.000128,2]
[339208344,1727326243258,-7367.11495268,0.00012223,2]
[339208345,1727326243270,-2632.88504732,0.00012223,2]
[339208346,1727326243279,-12406.24971386,0.000128,2]
[339208347,1727326243289,-4253.0155,0.000128,2]
[339208348,1727326243299,-158.07878933,0.000128,2]
[339208349,1727326243309,-1011.13840494,0.000128,2]
[339208350,1727326243319,-325.13094585,0.000128,2]
[339208351,1727326243328,-222.0,0.000128,2]
[339208352,1727326243337,-222.0,0.00012801,2]
[339208353,1727326243348,-222.0,0.00012801,2]
[339208354,1727326243357,-222.0,0.00012801,2]
[339208355,1727326243366,-355.0,0.00012802,2]
[339208357,1727326243384,-255.0,0.00012803,2]
[339208358,1727326243393,-222.0,0.00012818,2]
[339208359,1727326243403,-422.08681491,0.00012819,2]
[339208360,1727326243412,-1500.0,0.00012826,2]
[339208361,1727326243422,-355.0,0.00012844,2]
[339208362,1727326243431,-158.07878933,0.0001285,2]
[339208363,1727326243447,-255.0,0.00012852,2]
[339208364,1727326243456,-810.0,0.00012868,2]
[339208365,1727326243466,-398.049,0.00012868,2]
[339208366,1727326243475,-184.25963953,0.00012868,2]
[339208367,1727326243485,-474.594,0.00012868,2]
[339208368,1727326243494,-154.07172459,0.00012868,2]
[339208369,1727326243504,-873.51387971,0.00012899,2]
[339208370,1727326243514,-500.0,0.000129,2]
[339208371,1727326243523,-39326.70942638,0.000129,2]
[339208372,1727326243532,-125080.96467084,0.000129,2]
[339208381,1727326246039,-3992.41840448,0.00012223,2]
[339208382,1727326246266,-549.28780667,0.00012223,2]
[339208383,1727326246277,-533.62,0.00012378,2]
[339208384,1727326246287,-1755.79197102,0.000129,2]
[339208385,1727326246297,-11573.11739038,0.000129,2]
[339208386,1727326299264,500.0,0.00010164,2]
[339208387,1727326321758,500.0,0.00010164,2]
[339208388,1727326422657,1323.85,9.949e-05,2]
[339208389,1727326567434,150.0,0.00011105,2]
[339208390,1727326585287,152.29,0.000139,31]
[339208391,1727326585347,152.29,0.000139,31]
[339208392,1727326585416,152.29,0.000139,31]
[339208393,1727326585460,152.29,0.000139,31]
[339208394,1727326585525,152.29,0.000139,31]
[339208395,1727326585588,152.29,0.000139,31]
[339208396,1727326585656,152.29,0.000139,31]
[339208397,1727326585713,152.29,0.000139,31]
[339208398,1727326585764,152.29,0.000139,31]
[339208399,1727326585831,152.29,0.000139,31]
[339208400,1727326585886,152.29,0.000139,31]
[339208401,1727326586190,152.29,0.000139,31]
[339208402,1727326619295,171.93,9.458e-05,2]
[339208403,1727326704223,158.0,0.00010959,2]
[339208404,1727326759628,161.85,0.00010959,2]
[339208406,1727326987317,1257.65,9.796e-05,2]
[339208420,1727327192913,152.3,0.000139,31]
[339208421,1727327193023,152.3,0.000139,31]
[339208422,1727327193078,152.3,0.000139,31]
[339208423,1727327193159,152.3,0.000139,31]
[339208424,1727327193236,152.3,0.000139,31]
[339208425,1727327193271,152.3,0.000139,31]
[339208426,1727327193336,152.3,0.000139,31]
[339208427,1727327193402,152.3,0.000139,31]
[339208428,1727327193448,152.3,0.000139,31]
[339208429,1727327235738,1050.0,0.00011,2]
[339208434,1727327394856,154.32,0.00010959,2]
[339208444,1727327432329,-176.68505463,0.00011434,2]
[339208445,1727327432339,-500.0,0.00011534,2]
[339208446,1727327432348,-500.0,0.00011534,2]
[339208447,1727327432357,-612.1,0.00011618,2]
[339208448,1727327432366,-250.0,0.00011657,2]
[339208449,1727327432376,-250.0,0.00011667,2]
[339208450,1727327432386,-1000.0,0.00011695,2]
[339208451,1727327432396,-167.45,0.00011713,2]
[339208452,1727327432406,-250.0,0.00011721,2]
[339208453,1727327432415,-198.41,0.00011747,2]
[339208454,1727327432424,-200.9,0.00012046,2]
[339208455,1727327432433,-1257.65,0.00012059,2]
[339208456,1727327432442,-612.1,0.00012199,2]
[339208457,1727327432452,-533.62,0.000122,2]
[339208458,1727327432461,-533.62,0.000122,2]
[339208459,1727327432470,-549.28780667,0.00012223,2]
[339208460,1727327432479,-300.0,0.00012271,2]
[339208461,1727327432488,-159.60333,0.00012272,2]
[339208462,1727327432497,-2697.292037,0.00012272,2]
[339208463,1727327432506,-533.62,0.00012278,2]
[339208464,1727327432515,-428.4,0.000123,2]
[339208465,1727327432527,-428.4,0.000123,2]
[339208466,1727327432536,-4820.74072167,0.000123,2]
[339208467,1727327432545,-533.62,0.000123,2]
[339208468,1727327432554,-533.62,0.000123,2]
[339208469,1727327432563,-533.62,0.000123,2]
[339208470,1727327432572,-533.62,0.000123,2]
[339208472,1727327432580,-533.62,0.000123,2]
[339208474,1727327432589,-150.0,0.00012405,2]
[339208476,1727327432598,-150.0,0.00012405,2]
[339208477,1727327432607,-150.0,0.00012405,2]
[339208479,1727327432616,-150.0,0.00012405,2]
[339208482,1727327432625,-159.60333,0.00012426,2]
[339208483,1727327432634,-2697.292037,0.00012426,2]
[339208484,1727327432644,-150.0,0.000125,2]
[339208485,1727327432652,-533.62,0.000125,2]
[339208486,1727327432661,-150.0,0.000125,2]
[339208487,1727327432671,-533.62,0.000125,2]
[339208488,1727327432679,-533.62,0.000125,2]
[339208489,1727327432689,-301.07,0.000125,2]
[339208490,1727327432698,-150.0,0.000125,2]
[339208491,1727327432707,-300.56,0.000125,2]
[339208492,1727327432717,-430.86,0.000125,2]
[339208493,1727327432730,-428.4,0.000125,2]
[339208494,1727327432739,-533.62,0.000125,2]
[339208495,1727327432748,-297.68,0.000125,2]
[339208496,1727327432757,-4307.0,0.000125,3]
[339208497,1727327432766,-2697.292037,0.00012579,2]
[339208498,1727327432776,-159.60333,0.00012579,2]
[339208499,1727327432786,-150.0,0.000126,2]
[339208500,1727327432795,-150.0,0.000126,2]
[339208501,1727327432804,-533.62,0.000126,2]
[339208502,1727327432813,-150.0,0.000126,2]
[339208503,1727327432822,-533.62,0.000126,2]
[339208504,1727327432832,-1004.0,0.000126,2]
[339208505,1727327432841,-404.643,0.00012678,2]
[339208506,1727327432850,-3276.1614,0.000127,2]
[339208507,1727327432859,-2697.292037,0.00012733,2]
[339208508,1727327432868,-159.60333,0.00012733,2]
[339208509,1727327432877,-612.1,0.0001278,2]
[339208510,1727327432889,-2500.0,0.0001279,2]
[339208511,1727327432897,-4131.8886,0.000128,2]
[339208512,1727327432908,-1133.84975366,0.000128,2]
[339208513,1727327432921,-465.73650888,0.000128,2]
[339208514,1727327432931,-393.9067626,0.000128,2]
[339208515,1727327432947,-256.13787486,0.000128,2]
[339208516,1727327432957,-450.93944179,0.000128,2]
[339208517,1727327432969,-629.99914214,0.000128,2]
[339208518,1727327432980,-627.55451607,0.000128,2]
[339208519,1727327432989,-372.94548753,0.000128,2]
[339208520,1727327433002,-1222.57801247,0.000128,2]
[339208521,1727327433011,-176.40993535,0.000128,2]
[339208522,1727327433020,-185.74541579,0.000128,2]
[339208523,1727327433029,-198.57587628,0.000128,2]
[339208524,1727327433038,-325.13094585,0.000128,2]
[339208525,1727327433048,-2166.12269,0.000128,2]
[339208526,1727327433057,-180.0,0.00012808,2]
[339208527,1727327433067,-2166.12268995,0.00012811,2]
[339208528,1727327433076,-2166.12268995,0.00012822,2]
[339208529,1727327433085,-2166.12268995,0.00012833,2]
[339208530,1727327433094,-2166.12268995,0.00012844,2]
[339208531,1727327433104,-198.57587628,0.0001285,2]
[339208532,1727327433113,-2166.12268995,0.00012856,2]
[339208533,1727327433122,-2166.12268995,0.00012867,2]
[339208534,1727327433132,-465.83,0.00012868,2]
[339208535,1727327433141,-2697.292037,0.00012886,2]
[339208536,1727327433150,-159.60333,0.00012886,2]
[339208537,1727327433159,-30829.59964567,0.0001289,2]
[339208538,1727327433170,-371.6925449,0.0001289,2]
[339208539,1727327433181,-2944.07580152,0.0001289,2]
[339208540,1727327433192,-13790.59481179,0.0001289,2]
[339208545,1727327438390,-1275.15327242,0.00012878,2]
[339208546,1727327438404,-890.96941753,0.00012878,2]
[339208547,1727327438416,-396.03058247,0.0001289,2]
[339208548,1727327438610,-4888.27761967,0.0001289,2]
[339208549,1727327438625,-2730.40354718,0.0001289,2]
[339208550,1727327438636,-7440.2661436,0.0001289,2]
[339208551,1727327438649,-2694.22183388,0.0001289,2]
[339208552,1727327438662,-313.999999,0.0001289,2]
[339208553,1727327438673,-735.34134382,0.0001289,2]
[339208554,1727327438686,-1849.01762945,0.0001289,2]
[339208555,1727327438697,-7049.06241596,0.0001289,2]
[339208556,1727327438710,-1404.2,0.0001289,2]
[339208557,1727327438726,-11376.91597745,0.0001289,2]
[339208558,1727327438737,-300.45999998,0.0001289,2]
[339208559,1727327438750,-1114.47748706,0.0001289,2]
[339208560,1727327438763,-300.0,0.0001289,2]
[339208561,1727327438774,-815.0,0.0001289,2]
[339208562,1727327438790,-518.62206885,0.0001289,2]
[339208574,1727327440155,-639.92034794,0.0001289,2]
[339208575,1727327440166,-8222.18976046,0.0001289,2]
[339208576,1727327440177,-120488.76197902,0.0001289,2]
[339208577,1727327440186,-187.07397752,0.0001289,2]
[339208578,1727327440195,-187.07397752,0.0001289,2]
[339208579,1727327440205,-187.07397752,0.0001289,2]
[339208580,1727327440214,-157.1,0.0001289,2]
[339208581,1727327440224,-500.0,0.00012899,2]
[339208582,1727327440233,-500.0,0.00012899,2]
[339208583,1727327440243,-32256.02807638,0.000129,2]
[339208584,1727327440252,-508.0,0.000129,2]
[339208585,1727327440261,-257289.96447983,0.000129,2]
[339208586,1727327440273,-639.99,0.000129,2]
[339208587,1727327440290,-466.69382954,0.00012899,2]
[339208588,1727327440300,-2807.71408994,0.000129,2]
[339208589,1727327440313,-56638.74678757,0.000129,2]
[339208590,1727327440324,-126481.30690273,0.000129,2]
[339208591,1727327440479,-27790.47092542,0.000129,2]
[339208592,1727327440534,-4853.09999989,0.000129,2]
[339208593,1727327440546,-4925.52846422,0.000129,2]
[339208594,1727327440558,-5966.59176036,0.000129,2]
[339208595,1727327440580,-27591.75829495,0.000129,2]
[339208596,1727327440593,-6315.3454475,0.000129,2]
[339208597,1727327443333,-150.0,0.00012741,2]
[339208598,1727327443343,-116.362806,0.00012756,2]
[339208599,1727327443444,-150.0,0.00012746,2]
[339208600,1727327443455,-33.637194,0.00012756,2]
[339208601,1727327443465,-150.0,0.00012769,2]
[339208602,1727327443475,-150.0,0.00012779,2]
[339208603,1727327443487,-150.0,0.0001287,2]
[339208604,1727327443497,-343.75350526,0.00012889,2]
[339208605,1727327443509,-927.77,0.00012889,2]
[339208606,1727327443520,-894.59918469,0.00012889,2]
[339208607,1727327443530,-13065.16053238,0.000129,2]
[339208608,1727327443547,-24896.6478099,0.000129,2]
[339208609,1727327443558,-2456.37844139,0.000129,2]
[339208610,1727327443569,-3177.3396,0.000129,2]
[339208611,1727327443590,-150.0,0.00012747,2]
[339208612,1727327443599,-548.3526,0.000129,2]
[339208616,1727327446263,-150.0,0.00012748,2]
[339208617,1727327446272,-150.0,0.00012818,2]
[339208618,1727327446282,-150.0,0.00012867,2]
[339208619,1727327446291,-150.0,0.00012868,2]
[339208620,1727327446301,-5484.5,0.000129,2]
[339208621,1727327446312,-18101.6106962,0.000129,2]
[339208622,1727327446323,-15015.76540038,0.000129,2]
[339208623,1727327446339,-11861.77782766,0.000129,2]
[339208624,1727327446352,-12918.06001583,0.000129,2]
[339208625,1727327446363,-38787.21274438,0.000129,2]
[339208626,1727327446377,-1861.594756,0.000129,2]
[339208627,1727327446436,-1455.39500522,0.000129,2]
[339208628,1727327446447,-6488.44889042,0.000129,2]
[339208629,1727327446458,-5337.63867122,0.000129,2]
[339208630,1727327446493,-2603.16398746,0.000129,2]
[339208631,1727327446504,-2121.22391962,0.000129,2]
[339208632,1727327446552,-404.48230813,0.000129,2]
[339208633,1727327446662,-309485.70130287,0.000129,2]
[339208634,1727327446674,-104082.69552877,0.000129,2]
[339208743,1727327449729,150.0,0.00011,2]
[339208744,1727327450462,150.0,0.000105,2]
[339208745,1727327450876,150.0,0.0001,2]
[339208746,1727327451355,150.0,9.5e-05,2]
[339208747,1727327451789,176.025744,9e-05,2]
[339208748,1727327491230,500.0,0.00010164,2]
[339208749,1727327499833,600.0,8.22e-05,2]
[339208750,1727327501393,600.0,9.59e-05,2]
[339208751,1727327502957,600.0,0.0001096,2]
[339208752,1727327505766,-150.0,0.000115,2]
[339208753,1727327505792,-500.0,0.00011534,2]
[339208754,1727327505850,500.0,0.00010164,2]
[339208755,1727327507510,137.0,0.00011534,2]
[339208756,1727327519433,1177.53,9.927e-05,2]
[339208757,1727327601463,200.0,0.00020596,120]
[339208758,1727327751280,150.0,0.00011,2]
[339208759,1727327751836,150.0,0.000105,2]
[339208760,1727327799096,152.32,0.000139,31]
[339208761,1727327799147,152.32,0.000139,31]
[339208762,1727327799214,152.32,0.000139,31]
[339208763,1727327799270,152.32,0.000139,31]
[339208764,1727327799345,152.32,0.000139,31]
[339208765,1727327799392,152.32,0.000139,31]
[339208766,1727327799431,152.32,0.000139,31]
[339208767,1727328095808,1118.65,9.716e-05,2]
[339208768,1727328122817,500.0,0.00021,60]
[339208769,1727328123071,199.85,0.00021,60]
[339208770,1727328361182,161.07766762,9e-05,2]
[339208771,1727328404127,152.33,0.000139,31]
[339208772,1727328404203,152.33,0.000139,31]
[339208773,1727328404250,152.33,0.000139,31]
[339208774,1727328404312,152.33,0.000139,31]
[339208775,1727328404374,152.33,0.000139,31]
[339208776,1727328404440,152.33,0.000139,31]
[339208777,1727328404499,152.33,0.000139,31]
[339208778,1727328413171,447885.0,0.00011,2]
[339208779,1727328414290,336.4,0.00010959,2]
[339208780,1727328436450,205.0,9.8e-05,2]
[339208809,1727328631504,-150.0,0.000115,2]
[339208810,1727328631514,-363.0,0.00011534,2]
[339208811,1727328631524,-250.0,0.00011609,2]
[339208812,1727328631533,-250.0,0.0001162,2]
[339208813,1727328631543,-160.72,0.0001163,2]
[339208814,1727328631552,-244.84,0.00011656,2]
[339208815,1727328631561,-1000.0,0.00011733,2]
[339208816,1727328631570,-587.45,0.0001186,2]
[339208817,1727328631580,-1118.65,0.0001198,2]
[339208818,1727328631589,-150.0,0.00012,2]
[339208819,1727328631601,-533.62,0.00012,2]
[339208820,1727328631610,-238.92,0.00012,2]
[339208821,1727328631620,-244.84,0.00012239,2]
[339208822,1727328631629,-560.99008476,0.00012272,2]
[339208823,1727328631641,-2693.29304679,0.00012272,2]
[339208824,1727328631652,-3314.54732445,0.00012272,2]
[339208825,1727328631661,-2488.45267555,0.00012272,2]
[339208826,1727328631674,-6714.96792445,0.00012272,2]
[339208827,1727328631683,-194.872908,0.00012272,2]
[339208828,1727328631693,-465.069495,0.00012272,2]
[339208829,1727328631704,-600.0,0.0001233,2]
[339208830,1727328631713,-6568.830456,0.00012426,2]
[339208831,1727328631723,-5742.54514539,0.00012426,2]
[339208832,1727328631736,-3182.5672885,0.00012426,2]
[339208833,1727328631747,-278.30816611,0.00012426,2]
[339208834,1727328631756,-465.069495,0.00012426,2]
[339208835,1727328631766,-153.52,0.00012445,2]
[339208836,1727328631776,-150.0,0.000125,2]
[339208837,1727328631785,-194.872908,0.00012579,2]
[339208838,1727328631794,-41.62928452,0.00012579,2]
[339208839,1727328631805,-716.18874666,0.00012579,2]
[339208840,1727328631815,-4332.93842564,0.00012579,2]
[339208848,1727328637830,-559.12249875,0.00012579,2]
[339208849,1727328637849,-918.95150043,0.00012579,2]
[339208850,1727328637859,-9203.4206,0.00012579,2]
[339208851,1727328637869,-465.069495,0.00012579,2]
[339208852,1727328637880,-14685.5439671,0.000127,2]
[339208853,1727328638049,-375.6530677,0.000127,2]
[339208856,1727328639499,-20016.1742652,0.000127,2]
[339208857,1727328639509,-3712.4026,0.000127,2]
[339208858,1727328639519,-293.9926,0.000127,2]
[339208859,1727328639528,-3416.9018,0.000127,2]
[339208860,1727328639538,-2500.0,0.000127,2]
[339208861,1727328639547,-2815.61482496,0.000127,2]
[339208862,1727328639556,-2815.61482493,0.00012722,2]
[339208863,1727328639566,-6568.830456,0.00012733,2]
[339208864,1727328639575,-9203.4206,0.00012733,2]
[339208865,1727328639585,-465.069495,0.00012733,2]
[339208866,1727328639594,-2815.61482493,0.00012744,2]
[339208867,1727328639604,-207.61251467,0.00012757,2]
[339208868,1727328639617,-1515.58257895,0.00012759,2]
[339208869,1727328639626,-180.0,0.00012763,2]
[339208870,1727328639635,-150.0,0.00012765,2]
[339208871,1727328639645,-2815.61482493,0.00012767,2]
[339208872,1727328639654,-151.05171,0.00012771,2]
[339208873,1727328639664,-207.61251467,0.00012786,2]
[339208874,1727328639674,-2815.61482493,0.00012789,2]
[339208875,1727328639683,-1500.0,0.0001279,2]
[339208876,1727328639692,-185.7454158,0.00012792,2]
[339208877,1727328639702,-1500.0,0.00012794,2]
[339208878,1727328639711,-500.0,0.00012797,2]
[339208879,1727328639720,-161701.8234,0.000128,2]
[339208880,1727328639730,-2584.068492,0.000128,2]
[339208881,1727328639739,-433.07127419,0.000128,2]
[339208882,1727328639748,-159.85984811,0.000128,2]
[339208883,1727328639757,-156.51,0.000128,2]
[339208884,1727328639766,-178.73954412,0.000128,2]
[339208885,1727328639775,-185.74541579,0.000128,2]
[339208886,1727328639785,-579.75496064,0.000128,2]
[339208887,1727328639794,-258.29829691,0.00012809,2]
[339208888,1727328639803,-2815.61482493,0.00012811,2]
[339208889,1727328639812,-207.61251467,0.00012814,2]
[339208890,1727328639821,-150.0,0.00012819,2]
[339208891,1727328639830,-244.84,0.00012821,2]
[339208892,1727328639839,-1500.0,0.00012822,2]
[339208893,1727328639849,-433.07127417,0.00012825,2]
[339208894,1727328639858,-2815.61482493,0.00012833,2]
[339208895,1727328639867,-150.0,0.00012837,2]
[339208896,1727328639876,-207.61251467,0.00012843,2]
[339208897,1727328639886,-1500.0,0.00012843,2]
[339208898,1727328639896,-433.07127417,0.0001285,2]
[339208900,1727328639905,-579.75496064,0.0001285,2]
[339208902,1727328639914,-2815.61482493,0.00012856,2]
[339208904,1727328639923,-1500.0,0.00012857,2]
[339208906,1727328639932,-1500.0,0.00012861,2]
[339208908,1727328639941,-553.0,0.00012868,2]
[339208910,1727328639950,-1903.0,0.00012868,2]
[339208912,1727328639959,-3347.0,0.00012868,2]
[339208914,1727328639968,-806.0,0.00012868,2]
[339208916,1727328639977,-1915.0,0.00012868,2]
[339208918,1727328639986,-1081.0,0.00012868,2]
[339208920,1727328639995,-181.12,0.00012868,2]
[339208921,1727328640005,-632.854,0.00012868,2]